[Event "26th Triest Festival 2024"]
[Site "Triest"]
[Date "2024.09.04"]
[Round "7.1"]
[White "Bosiocic, Marin"]
[Black "Baklan, Vladimir"]
[Result "1/2-1/2"]
[ECO "A17"]
[WhiteElo "2555"]
[BlackElo "2535"]
[Annotator "RC"]
[PlyCount "187"]
[EventDate "2024.09.02"]
[EventType "swiss"]
[EventCountry "ITA"]
[SourceTitle "playchess.com"]
[Source "ChessBase"]
[SourceQuality "1"]
[TimeControl "5400+30"]

1. Nf3 {[%emt 0:00:04]} Nf6 {[%emt 0:00:04]} 2. c4 {[%emt 0:00:10]} e6 {[%emt 0:00:12]} 3. g3 {[%emt 0:00:12]} b6 {[%emt 0:00:45]} 4. Bg2 {[%emt 0:00:17]} Bb7 {[%emt 0:00:04]} 5. O-O {[%emt 0:00:10]} Be7 {[%emt 0:00:15]} 6. Nc3 {[%emt 0:00:26]} Ne4 {[%emt 0:00:23]} 7. Nxe4 {[%emt 0:00:20]} Bxe4 {[%emt 0:00:04]} 8. d3 {[%emt 0:00:07]} Bb7 {[%emt 0:00:04]} 9. e4 {[%emt 0:00:08]} c5 {[%emt 0:01:19]} 10. Re1 {[%emt 0:00:08]} O-O {[%emt 0:00:15]} 11. d4 {[%emt 0:01:22]} cxd4 {[%emt 0:00:05]} 12. Nxd4 {[%emt 0:00:08]} Nc6 {[%emt 0:00:11]} 13. e5 {[%emt 0:06:10]} Na5 {[%emt 0:02:11]} 14. Bxb7 {[%emt 0:02:18]} Nxb7 {[%emt 0:00:11]} 15. Qg4 {[%emt 0:00:27]} f5 {[%emt 0:09:46]} 16. exf6 {[%emt 0:00:35]} Bxf6 {[%emt 0:00:04]} 17. Be3 {[%emt 0:00:23]} Qc8 {[%emt 0:11:09]} 18. b3 {[%emt 0:00:48]} Nd8 {[%emt 0:00:08]} 19. Rad1 {[%emt 0:03:30]} Qb7 {[%emt 0:03:49]} 20. Qf3 {[%emt 0:12:10]} d5 {[%emt 0:16:12]} 21. Qg2 {[%emt 0:01:20]} dxc4 {[%emt 0:12:00]} 22. Qxb7 {[%emt 0:00:51]} Nxb7 {[%emt 0:00:02]} 23. Nxe6 {[%emt 0:00:42]} Rfc8 {[%emt 0:01:10]} 24. Rd7 {[%emt 0:05:28]} cxb3 {[%emt 0:01:23]} 25. axb3 {[%emt 0:04:23]} Nc5 {[%emt 0:13:12]} 26. Bxc5 {[%emt 0:00:29]} bxc5 {[%emt 0:00:03]} 27. g4 {[%emt 0:01:09]} c4 {[%emt 0:10:07]} 28. bxc4 {[%emt 0:01:37]} Rxc4 {[%emt 0:00:09]} 29. g5 {[%emt 0:01:35]} Bc3 {[%emt 0:01:25]} 30. Re3 {[%emt 0:05:04]} Re8 {[%emt 0:02:21]} 31. Rxa7 {[%emt 0:05:48]} Rc6 {[%emt 0:00:15]} 32. Nf4 {[%emt 0:03:10]} Rxe3 {[%emt 0:00:12]} 33. fxe3 {[%emt 0:00:09]} Be5 {[%emt 0:00:05]} 34. Nd3 {[%emt 0:01:09]} Bc7 {[%emt 0:00:31]} 35. h4 {[%emt 0:01:40]} Rc3 {[%emt 0:01:25]} 36. Kf2 {[%emt 0:02:09]} Bd6 {[%emt 0:08:00]} 37. Ke2 {[%emt 0:04:10]} Rc8 {[%emt 0:04:14]} 38. Rd7 {[%emt 0:00:59]} Bg3 {[%emt 0:01:43]} 39. Kf3 {[%emt 0:01:41]} Bh2 {[%emt 0:00:40]} 40. h5 {[%emt 0:01:08]} Re8 {[%emt 0:00:50]} 41. g6 {[%emt 0:07:48]} hxg6 {[%emt 0:00:39]} 42. hxg6 {[%emt 0:00:04]} Kf8 {[%emt 0:01:26]} 43. Nf4 {[%emt 0:12:15]} Bxf4 {[%emt 0:00:43]} 44. Rf7+ {[%emt 0:00:43]} Kg8 {[%emt 0:00:04]} 45. exf4 {[%emt 0:03:20]} Re6 {[%emt 0:00:57]} 46. f5 {[%emt 0:00:05]} Re1 {[%emt 0:00:06]} 47. Rc7 {[%emt 0:00:25]} Kf8 {[%emt 0:00:05]} 48. Kf4 {[%emt 0:00:30]} Rf1+ {[%emt 0:00:43]} 49. Ke5 {[%emt 0:00:13]} Re1+ {[%emt 0:00:07]} 50. Kd6 {[%emt 0:00:08]} Rd1+ {[%emt 0:00:09]} 51. Ke6 {[%emt 0:00:28]} Re1+ {[%emt 0:00:04]} 52. Kd5 {[%emt 0:00:43]} Rd1+ {[%emt 0:00:03]} 53. Ke4 {[%emt 0:00:10]} Re1+ {[%emt 0:00:08]} 54. Kd3 {[%emt 0:00:07]} Rf1 {[%emt 0:04:29]} 55. Rf7+ {[%emt 0:00:05]} Kg8 {[%emt 0:00:04]} 56. Ke4 {[%emt 0:00:36]} Re1+ {[%emt 0:00:28]} 57. Kd5 {[%emt 0:00:16]} Rd1+ {[%emt 0:00:23]} 58. Ke6 {[%emt 0:00:34]} Re1+ {[%emt 0:00:18]} 59. Kd7 {[%emt 0:01:11]} Re5 {[%emt 0:01:23]} 60. Kd6 {[%emt 0:00:15]} Ra5 {[%emt 0:00:08]} 61. Ke6 {[%emt 0:00:08]} Ra6+ {[%emt 0:00:07]} 62. Ke5 {[%emt 0:00:09]} Ra5+ {[%emt 0:00:20]} 63. Kf4 {[%emt 0:00:04]} Ra4+ {[%emt 0:01:04]} 64. Kg5 {[%emt 0:00:03]} Ra1 {[%emt 0:00:02]} 65. Rd7 {[%emt 0:00:28]} Kf8 {[%emt 0:00:08]} 66. Kf4 {[%emt 0:01:32]} Rf1+ {[%emt 0:01:33]} 67. Ke5 {[%emt 0:00:03]} Re1+ {[%emt 0:00:23]} 68. Kd6 {[%emt 0:00:09]} Rd1+ {[%emt 0:00:08]} 69. Kc7 {[%emt 0:00:06]} Rc1+ {[%emt 0:00:24]} 70. Kd8 {[%emt 0:00:16]} Rc5 {[%emt 0:00:39]} 71. Rf7+ {[%emt 0:00:35]} Kg8 {[%emt 0:00:03]} 72. Kd7 {[%emt 0:01:31]} Re5 {[%emt 0:00:56]} 73. Kd6 {[%emt 0:00:17]} Ra5 {[%emt 0:00:07]} 74. Ke6 {[%emt 0:00:21]} Ra6+ {[%emt 0:00:04]} 75. Ke5 {[%emt 0:00:03]} Ra5+ {[%emt 0:02:37]} 76. Kf4 {[%emt 0:00:04]} Ra4+ {[%emt 0:00:13]} 77. Kg5 {[%emt 0:00:03]} Ra1 {[%emt 0:00:04]} 78. Rc7 {[%emt 0:06:28]} Kf8 {[%emt 0:00:04]} 79. Rc4 {[%emt 0:00:38]} Rf1 {[%emt 0:02:26]} 80. Rc8+ {[%emt 0:03:58]} Ke7 {[%emt 0:00:04]} 81. Rg8 {[%emt 0:00:21]} Rg1+ {[%emt 0:00:25]} 82. Kf4 {[%emt 0:00:05]} Rf1+ {[%emt 0:00:13]} 83. Ke4 {[%emt 0:00:03]} Re1+ {[%emt 0:00:16]} 84. Kd3 {[%emt 0:00:03]} Kf6 {[%emt 0:01:01]} 85. Rf8+ {[%emt 0:00:06]} Kg5 {[%emt 0:00:04]} 86. Kd4 {[%emt 0:00:20]} Ra1 {[%emt 0:02:20]} 87. Ke5 {[%emt 0:01:40]} Ra5+ {[%emt 0:00:34]} 88. Ke6 {[%emt 0:00:13]} Ra6+ {[%emt 0:00:26]} 89. Ke7 {[%emt 0:00:28]} Ra7+ {[%emt 0:00:04]} 90. Ke8 {[%emt 0:00:20]} Ra5 {[%emt 0:00:20]} 91. Rf7 {[%emt 0:00:27]} Kh6 {[%emt 0:01:10]} 92. Rf8 {[%emt 0:00:30]} Kg5 {[%emt 0:00:09]} 93. Ke7 {[%emt 0:01:32]} Ra7+ {[%emt 0:00:17]} 94. Ke8 {[%emt 0:09:56]} 1/2-1/2

[Event "26th Triest Festival 2024"]
[Site "Triest"]
[Date "2024.09.04"]
[Round "7.2"]
[White "Valsecchi, Alessio"]
[Black "Doric, Darko"]
[Result "1-0"]
[ECO "B12"]
[WhiteElo "2475"]
[BlackElo "2443"]
[Annotator "TA"]
[PlyCount "93"]
[EventDate "2024.09.02"]
[EventType "swiss"]
[EventCountry "ITA"]
[SourceTitle "playchess.com"]
[Source "ChessBase"]
[SourceQuality "1"]
[TimeControl "5400+30"]

{[%evp 9,93,0,0,0,10,0,0,6,4,-7,0,0,0,0,0,-18,0,0,0,0,0,0,0,0,0,0,12,13,20,7,10,0,19,0,22,16,17,8,29,25,31,39,49,38,45,50,37,31,32,8,17,22,29,23,55,19,28,31,59,68,64,60,104,74,220,214,221,162,180,174,187,0,224,225,225,212,464,460,460,456,449,401,2064,1244,6115,5751]} 1. e4 {[%emt 0:00:03]} c6 {[%emt 0:00:06]} 2. d4 {[%emt 0:00:17]} d5 {[%emt 0:00:07]} 3. e5 {[%emt 0:00:19]} c5 {[%emt 0:00:12]} 4. Nf3 {[%emt 0:00:46]} cxd4 {[%emt 0:00:38]} 5. Qxd4 {[%emt 0:00:29]} Nc6 {[%emt 0:00:10]} 6. Qf4 {[%emt 0:00:08]} e6 {[%emt 0:00:09]} 7. Nc3 {[%emt 0:00:21]} Nb4 {[%emt 0:00:30]} 8. Qd2 {[%emt 0:00:54] The position is equal.} Ne7 {[%emt 0:04:38]} 9. a3 {[%emt 0:03:41]} Nbc6 {[%emt 0:00:25]} 10. Bd3 {[%emt 0:00:08]} Ng6 {[%emt 0:00:54]} 11. Bxg6 {[%emt 0:03:01]} hxg6 {[%emt 0:00:43]} 12. Qd3 {[%emt 0:00:32]} Be7 {[%emt 0:00:40]} 13. O-O {[%emt 0:00:51]} Bd7 {[%emt 0:01:10]} 14. Re1 {[%emt 0:06:33]} a6 {[%emt 0:01:47]} 15. h3 {[%emt 0:05:11]} Rc8 {[%emt 0:00:49]} 16. Ne2 {[%emt 0:02:00]} Na5 {[%emt 0:03:32]} 17. Ned4 {[%emt 0:02:51]} Nc6 {[%emt 0:01:07]} 18. c3 {[%emt 0:11:32]} Nxd4 {[%emt 0:00:27]} 19. cxd4 {[%emt 0:03:14]} Bb5 {[%emt 0:10:35]} 20. Qd1 {[%emt 0:01:14]} a5 {[%emt 0:00:39]} 21. a4 {[%emt 0:00:57]} Ba6 {[%emt 0:00:18]} 22. Bd2 {[%emt 0:06:51]} O-O {[%emt 0:06:46]} 23. Re3 {[%emt 0:01:10]} Rc4 {[%emt 0:02:55]} 24. b3 {[%emt 0:00:57]} Rc8 {[%emt 0:04:18]} 25. Qe1 {[%emt 0:00:31]} b6 {[%emt 0:00:06]} 26. b4 {[%emt 0:00:25]} axb4 {[%emt 0:59:49]} 27. Bxb4 {[%emt 0:00:14]} Rc6 {[%emt 0:18:06]} 28. Rb3 {[%emt 0:15:13]} Bc4 {[%emt 0:00:28]} 29. Rba3 {[%emt 0:00:30]} Bxb4 {[%emt 0:02:28]} 30. Qxb4 {[%emt 0:00:02]} Be2 {[%emt 0:00:19]} 31. Ne1 {[%emt 0:01:58]} Qh4 {[%emt 0:08:35]} 32. Qd2 {[%emt 0:03:27]} Ba6 {[%emt 0:00:59]} 33. a5 {[%emt 0:03:02] aiming for axb6.} Rb8 {[%emt 0:07:04]} 34. axb6 {[%emt 0:02:48]} Rbxb6 {[%emt 0:00:02]} 35. Nf3 {[%emt 0:07:11]} Qe7 {[%emt 0:00:31][%cal Ob6b1]} 36. Qf4 {[%emt 0:19:09]} f6 {[%emt 0:00:43]} (36... Bb7 $16) 37. Qg3 $18 {[%emt 0:01:38] Threatens to win with exf6.} Qf7 {[%emt 0:01:14]} 38. h4 {[%emt 0:00:44]} Bc8 {[%emt 0:03:41]} 39. Ra7 $36 {[%emt 0:01:17][%mdl 2048] White is really pushing.} Bb7 {[%emt 0:00:44]} 40. Ra8+ $2 {[%emt 0:01:43]} (40. exf6 $18 {Black must now prevent Ng5.} gxf6 41. Nh2) 40... Rc8 $2 {[%emt 0:01:32] [#]} (40... Bxa8 $11 {and Black is okay.} 41. Rxa8+ Kh7) 41. Rxc8+ $1 {[%emt 0:00:53]} Bxc8 {[%emt 0:00:01] Black is weak on the dark squares} 42. Rc1 {[%emt 0:01:39] Dodges Rc6} Bd7 {[%emt 0:05:14]} (42... Ba6 43. exf6 gxf6) 43. exf6 {[%emt 0:00:06]} gxf6 {[%emt 0:00:08]} 44. Qc7 {[%emt 0:00:17] Prevents Rc6} Ra6 {[%emt 0:03:31]} 45. Qd8+ {[%emt 0:00:43]} Kg7 {[%emt 0:01:35]} (45... Be8 $142 46. Rc8 Ra1+ 47. Kh2 Ra7 48. Qxe8+ Qxe8 49. Rxe8+ Kf7) 46. Rc7 {[%emt 0:00:13]} Rd6 {[%emt 0:00:36] [#]} 47. Ne5 $1 {[%emt 0:00:21][%mdl 512] Weighted Error Value: White=0.13 (very precise) /Black=0.27 (precise) .  Loses game:     	---       	Black=1      Missed win:     	White=1     	---        Mistake:       	---       	Black=3      Inaccurate:     	White=1     	Black=4      OK:         	White=19    	Black=10     Best:        	White=2     	Black=1      Strong:       	White=1     	---} 1-0

[Event "26th Triest Festival 2024"]
[Site "Triest"]
[Date "2024.09.04"]
[Round "7.3"]
[White "Fischer, Daniel"]
[Black "Barp, Alberto"]
[Result "0-1"]
[ECO "C78"]
[WhiteElo "2349"]
[BlackElo "2431"]
[Annotator "TA"]
[PlyCount "120"]
[EventDate "2024.09.02"]
[EventType "swiss"]
[EventCountry "ITA"]
[SourceTitle "playchess.com"]
[Source "ChessBase"]
[SourceQuality "1"]
[TimeControl "5400+30"]

{[%evp 21,120,0,2,0,4,10,22,0,0,7,22,-44,-37,-39,0,0,0,0,12,0,4,0,0,0,0,-10,0,-54,-54,-76,-83,-84,-62,-314,-314,-314,-307,-402,-409,-407,-407,-389,-333,-326,-326,-322,-318,-326,-318,-315,-315,-1362,-861,-5398,-5192,-1995,-1806,-29961,-29965,-29963,-29962,-29961,-29964,-29966,-29967,-29968,-29969,-29968,-425,-29970,-29970,-29969,-29969,-29968,-29969,-29970,-29968,-29971,0,-29969,-29972,-29971,-29973,-29972,-29972,-29972,0,-29972,-29973,-29974,-29975,-29975,-29970,-29970,-29971,-29974,-29973,-29977,-29974,-6525,-6456]} 1. e4 {[%emt 0:00:03]} e5 {[%emt 0:00:03]} 2. Nf3 {[%emt 0:00:09]} Nc6 {[%emt 0:00:03]} 3. Bb5 {[%emt 0:00:05]} a6 {[%emt 0:00:03]} 4. Ba4 {[%emt 0:00:06]} Nf6 {[%emt 0:00:03]} 5. O-O {[%emt 0:00:13]} b5 {[%emt 0:00:04]} 6. Bb3 {[%emt 0:00:05]} Bc5 {[%emt 0:00:02]} 7. c3 {[%emt 0:00:24]} d6 {[%emt 0:00:04]} 8. d4 {[%emt 0:00:17]} Bb6 {[%emt 0:00:04]} 9. Be3 {[%emt 0:00:12]} O-O {[%emt 0:00:09]} 10. Nbd2 {[%emt 0:00:18]} Re8 {[%emt 0:00:22]} 11. h3 {[%emt 0:01:33]} h6 {[%emt 0:14:03]} 12. Re1 {[%emt 0:02:24]} exd4 {[%emt 0:00:16]} 13. cxd4 {[%emt 0:01:45][%cal Oe4e5]} Nb4 {[%emt 0:03:00][%cal Oc8b7]} 14. e5 {[%emt 0:12:50] The position is equal.} (14. Qe2 $5) 14... dxe5 {[%emt 0:07:00]} 15. dxe5 {[%emt 0:03:12]} Bxe3 {[%emt 0:05:33]} 16. Rxe3 {[%emt 0:14:45]} (16. exf6 Bxf2+ 17. Kxf2 Nd3+ (17... gxf6 $2 18. Rxe8+ Qxe8 19. Ne1 $18) 18. Kf1 Nxe1 19. Nxe1 Qxf6+ (19... gxf6 20. Qf3 $16) 20. Qf3 Qxf3+ 21. Nexf3 c5 $15) (16. fxe3 $11 Nh7 17. Re2) 16... Nfd5 $15 {[%emt 0:00:25]} 17. Re2 {[%emt 0:14:29]} Bf5 {[%emt 0:18:52]} ({Black should try} 17... Bb7 $15) 18. Ne4 $11 {[%emt 0:07:21] Ng3 is the strong threat.} Nf4 {[%emt 0:07:15]} 19. Rd2 {[%emt 0:02:03]} Qe7 {[%emt 0:00:09]} 20. Ng3 {[%emt 0:04:39]} Bg6 {[%emt 0:00:34]} 21. Ne2 {[%emt 0:08:38]} Nxe2+ {[%emt 0:08:14]} 22. Qxe2 {[%emt 0:00:04] And now a3 would win.} Rad8 {[%emt 0:01:16]} 23. Rxd8 {[%emt 0:02:59]} Rxd8 {[%emt 0:00:47]} 24. a3 {[%emt 0:12:28] Wards off c5} (24. e6 $11 fxe6 25. Qxe6+ Qxe6 26. Bxe6+ Kf8 27. Ne5) 24... Nd3 $15 {[%emt 0:04:38]} 25. Rd1 {[%emt 0:00:34] [#]} c5 $1 {[%emt 0:06:56] Black continues to play with concentration.} 26. Ne1 {[%emt 0:00:35]} c4 {[%emt 0:05:13] Black is much more active.} (26... Nxe5 $2 27. Rxd8+ Qxd8 28. Qxe5 $18) 27. Nxd3 {[%emt 0:00:15][%mdl 8192]} (27. Bc2 $1 $15) 27... Bxd3 $19 {[%emt 0:03:09]} ({Weaker is} 27... cxd3 28. Qe3 $17) (27... Rxd3 28. Bc2 Rxd1+ 29. Bxd1 $17) 28. Qe3 {[%emt 0:00:06]} Bg6 {[%emt 0:01:20]} 29. Rxd8+ {[%emt 0:03:03]} Qxd8 {[%emt 0:00:11][%mdl 4096] Endgame. KQB-KQB} 30. Ba2 {[%emt 0:09:55]} Qd1+ {[%emt 0:00:09]} 31. Kh2 {[%emt 0:00:00]} Qa1 {[%emt 0:00:52][%cal Oa1b2] Hoping for ...Qxb2!} 32. e6 {[%emt 0:00:00]} fxe6 {[%emt 0:00:24]} (32... Qxa2 33. e7 f5 34. e8=B Bxe8 35. Qxe8+ Kh7 36. Qe5 $17) 33. Qxe6+ {[%emt 0:00:00]} Bf7 {[%emt 0:04:59]} 34. Qc8+ {[%emt 0:00:00]} Kh7 {[%emt 0:00:12]} 35. Qb7 {[%emt 0:00:00]} Bg6 {[%emt 0:02:52]} ({Less strong is} 35... Qxa2 36. Qxf7 Qxb2 37. Qf5+ g6 38. Qc5 $17) 36. Qxa6 $2 {[%emt 0:00:00]} (36. Bxc4 bxc4 37. Qxa6) 36... Qxb2 {[%emt 0:00:31]} 37. Bxc4 {[%emt 0:00:00]} bxc4 {[%emt 0:00:03]} 38. Qxc4 {[%emt 0:00:00]} Qxf2 {[%emt 0:00:07]} 39. a4 {[%emt 0:00:00]} Qc2 {[%emt 0:00:21]} 40. Qg4 {[%emt 0:00:00]} Be8 {[%emt 0:00:55]} 41. a5 {[%emt 0:00:00]} Qc7+ {[%emt 0:00:10]} 42. Kh1 {[%emt 0:00:00]} Qxa5 {[%emt 0:00:32]} 43. Qe4+ {[%emt 0:00:00]} Bg6 {[%emt 0:00:04]} 44. Qg4 {[%emt 0:00:00]} Qe1+ {[%emt 0:00:34]} 45. Kh2 {[%emt 0:00:00]} Qe4 {[%emt 0:00:09]} 46. Qd1 {[%emt 0:00:00]} Qf4+ {[%emt 0:00:17]} 47. Kg1 {[%emt 0:00:00]} Be4 {[%emt 0:00:19]} 48. Qe2 {[%emt 0:00:00]} Bf5 {[%emt 0:01:13]} 49. Qb5 {[%emt 0:00:57]} Be4 {[%emt 0:02:04]} 50. Qe2 {[%emt 0:00:19]} Bd5 {[%emt 0:00:20]} 51. Qc2+ {[%emt 0:00:21]} Qe4 {[%emt 0:00:05]} 52. Qd2 {[%emt 0:00:05]} Kg6 {[%emt 0:00:25]} 53. Qf2 {[%emt 0:00:39]} Kh7 $2 {[%emt 0:00:59]} (53... Kh5 {mates} 54. Kh1 Kg6 55. Kh2 Qe6 56. Qg3+ Kh7 57. Qd3+ Be4 58. Qg3 Qf6 59. Qg4 Qe5+ 60. Kg1 Bc6 61. Kf2 Qg5 62. Qxg5 hxg5 63. g4 Kg6 64. Kf1 Kf6 65. Kf2 Ke5 66. Kg3 Bb7 67. h4 gxh4+ 68. Kxh4 Kf4 69. g5 Be4 70. Kh3 Kxg5 71. Kg3 Kf5 72. Kh2 Kf4 73. Kg1 g5 74. Kf2 g4 75. Kf1 g3 76. Ke2 g2 77. Kf2 Ba8 78. Kg1 Ke3 79. Kh2 Kf2 80. Kh3 g1=Q (80... g1=R $2 {leads to mate.} 81. Kh4 Bf3 82. Kh3 Rh1#) 81. Kh4 Qg6 82. Kh3 Qh5#) 54. Kh2 $2 {[%emt 0:00:18][%mdl 8192] [#]} (54. Qd2 $11 Qe5 55. Qd1) 54... g5 {[%emt 0:00:42]} 55. Kh1 {[%emt 0:00:42]} Kg6 {[%emt 0:00:09]} 56. Kg1 {[%emt 0:01:07]} Qe6 {[%emt 0:03:54]} 57. Qc2+ {[%emt 0:00:26]} Be4 {[%emt 0:00:04]} 58. Qf2 {[%emt 0:00:12]} Qc6 {[%emt 0:00:13]} 59. Qd2 {[%emt 0:01:55]} Qc5+ {[%emt 0:00:10]} 60. Kf1 {[%emt 0:01:29]} Bd5 {[%emt 0:01:28] Weighted Error Value: White=0.63/Black=0.16 (very precise) .  Loses game:     	White=1     	---        Mistake:       	White=3     	Black=1      Inaccurate:     	White=1     	---        OK:         	White=11    	Black=10     Best:        	White=1     	Black=6      Strong:       	---       	Black=1} 0-1

[Event "26th Triest Festival 2024"]
[Site "Triest"]
[Date "2024.09.04"]
[Round "7.4"]
[White "Wong, Zhenyong Jayden"]
[Black "Gong, Qianyun"]
[Result "1-0"]
[ECO "A25"]
[WhiteElo "2397"]
[BlackElo "2250"]
[Annotator "TA"]
[PlyCount "55"]
[EventDate "2024.09.02"]
[EventType "swiss"]
[EventCountry "ITA"]
[SourceTitle "playchess.com"]
[Source "ChessBase"]
[SourceQuality "1"]
[TimeControl "5400+30"]

{[%evp 9,55,31,36,36,43,4,28,27,38,5,8,0,14,-7,0,0,0,-17,0,0,0,0,0,-9,13,0,10,0,23,0,0,0,6,0,0,0,0,0,23,22,199,206,181,175,202,191,29986,29985]} 1. c4 {[%emt 0:01:22]} e5 {[%emt 0:00:08]} 2. g3 {[%emt 0:01:45]} Nc6 {[%emt 0:00:12]} 3. Bg2 {[%emt 0:00:22]} f5 {[%emt 0:00:11]} 4. Nc3 {[%emt 0:01:35]} Nf6 {[%emt 0:00:07]} 5. e3 {[%emt 0:00:24]} d6 {[%emt 0:00:40]} 6. d4 {[%emt 0:03:40]} g6 {[%emt 0:02:45]} 7. b4 {[%emt 0:09:28][%cal Bb2b4,Bb4b5][%mdl 32]} Bg7 {[%emt 0:15:00]} 8. b5 {[%emt 0:02:56] White has an edge.} (8. Bxc6+ bxc6 9. dxe5 dxe5 10. Qxd8+ Kxd8 $17) 8... Ne7 {[%emt 0:00:19]} 9. Nge2 {[%emt 0:02:05]} e4 {[%emt 0:05:18]} 10. f3 {[%emt 0:02:26]} Be6 {[%emt 0:09:03][%cal Bc8e6,Be6f7,Bf7h5][%mdl 32]} 11. Qa4 {[%emt 0:07:47]} O-O {[%emt 0:14:05]} 12. Nf4 {[%emt 0:02:26]} Bf7 {[%emt 0:00:33]} 13. fxe4 {[%emt 0:02:25]} fxe4 {[%emt 0:00:18]} 14. Nxe4 {[%emt 0:05:14]} Nxe4 {[%emt 0:00:28]} 15. Bxe4 {[%emt 0:00:05]} g5 {[%emt 0:00:46]} 16. Ne2 {[%emt 0:07:37]} d5 {[%emt 0:01:35]} 17. Bd3 {[%emt 0:01:01]} Bh5 {[%emt 0:14:11]} 18. Qc2 {[%emt 0:05:37]} h6 {[%emt 0:05:11]} 19. h4 {[%emt 0:04:17] [#] And now hxg5 would win.} Qd6 $1 {[%emt 0:06:22]} 20. hxg5 {[%emt 0:06:57]} Bxe2 {[%emt 0:00:20]} 21. Qxe2 {[%emt 0:00:48] Black must now prevent Qg4.} (21. Kxe2 $2 Qxg3 22. Bh7+ Kh8 $19) 21... Qxg3+ {[%emt 0:00:09]} 22. Kd1 $1 {[%emt 0:00:02] Rb1 is the strong threat.} Rf2 {[%emt 0:00:20]} 23. Qh5 {[%emt 0:06:10]} Bxd4 {[%emt 0:01:36]} (23... hxg5 $6 24. Rb1 $16) 24. Rb1 {[%emt 0:03:42] aiming for cxd5. The board is on fire.} (24. Bh7+ Kxh7 25. exd4 Kg8 $17 (25... dxc4 26. Qxh6+ Kg8 27. Qe6+ Rf7 28. Rh3 $11) (25... Qd3+ 26. Ke1 $17)) 24... Bxe3 $2 {[%emt 0:06:58] [#] A mistake that costs the game.} (24... Rd8 $11 {and Black stays safe.} 25. Rb3 Be5 (25... Bxe3 $2 26. Bxe3 dxc4 27. Bxf2 $18)) 25. Rb3 $1 $18 {[%emt 0:06:13]} d4 {[%emt 0:13:38]} (25... Rxa2 $2 {perishes.} 26. Bh7+ (26. gxh6 Kh8 $16) 26... Kf8 27. Rxe3 $18 (27. Bxe3 Qg2 $18)) 26. Qxh6 {[%emt 0:01:50]} Qf3+ {[%emt 0:00:28]} 27. Ke1 {[%emt 0:00:01][%cal Oc4c5] Threatens to win with c5!} Rd2 $2 {[%emt 0:00:15]} (27... Qg3 $18 28. Qh7+ Kf8) 28. Qe6+ {[%emt 0:01:07] Weighted Error Value: White=0.07 (flawless) /Black=0.46.  Loses game:     	---       	Black=1      Mistake:       	---       	Black=1      Inaccurate:     	White=2     	---        OK:         	White=6     	Black=6      Best:        	White=2     	Black=2      Strong:       	White=2     	Black=1} (28. Bxd2 $2 {is a self mate.} Qf2+ 29. Kd1 Qxd2#) 1-0